bitfinex/quotes_ETHUSD_20240819
["timestamp","ask_amount","ask_price","bid_price","bid_amount"]
[1724110312686,3.111,2637.9,2637.0,2.65448]
[1724110312687,2.65403,2637.5,2637.0,2.65448]
[1724110312871,2.3461,2637.6,2637.0,2.65446]
[1724110313072,2.3461,2637.6,2637.1,2.65443]
[1724110313257,2.3461,2637.6,2637.2,2.65432]
[1724110314005,2.65362,2637.9,2637.3,5.30834]
[1724110314153,2.65362,2637.9,2637.3,2.65416]
[1724110314358,2.65367,2637.9,2637.3,2.65416]
[1724110314561,2.3865,2638.0,2637.3,2.65416]
[1724110314799,2.65379,2637.8,2637.3,2.65416]
[1724110314999,2.65379,2637.8,2637.1,2.65433]
[1724110315354,2.65385,2637.7,2637.2,2.6543]
[1724110317174,2.3865,2638.0,2637.0,2.65444]
[1724110317499,2.3865,2638.0,2637.5,2.654]
[1724110317805,5.04008,2638.0,2637.5,2.654]
[1724110317989,2.65384,2637.7,2637.2,2.65427]
[1724110318188,2.65384,2637.7,2637.1,2.65434]
[1724110318394,2.3865,2638.0,2637.3,2.65422]
[1724110318900,2.3865,2638.0,2636.8,2.7275]
[1724110318901,2.3865,2638.0,2637.2,2.65432]
[1724110319208,2.65385,2637.7,2637.1,5.30873]
[1724110319373,2.6537,2637.9,2637.1,2.65436]
[1724110319374,5.30741,2637.9,2637.1,2.65436]
[1724110319614,2.65383,2637.7,2637.1,2.65433]
[1724110319928,2.65383,2637.7,2637.1,5.3087]
[1724110320087,2.65383,2637.7,2637.1,2.65433]
[1724110320088,5.30773,2637.7,2637.1,2.65433]
[1724110320287,2.65408,2637.5,2636.9,2.65456]
[1724110320539,2.58775,2637.9,2636.7,2.3733]
[1724110320736,2.3491,2637.9,2637.6,2.65387]
[1724110321027,2.3491,2637.9,2637.6,2.65386]
[1724110321231,2.3491,2637.9,2637.4,2.65403]
[1724110321388,3.111,2638.3,2637.9,2.65359]
[1724110321389,2.2753,2638.3,2637.9,2.65359]
[1724110321831,2.2753,2638.3,2638.0,2.65346]
[1724110322405,4.92853,2638.3,2637.7,2.65377]
[1724110322724,4.92853,2638.3,2637.6,2.65385]
[1724110323049,4.92853,2638.3,2637.8,2.6537]
[1724110323714,2.2753,2638.3,2637.9,2.6536]
[1724110324118,2.2753,2638.3,2637.4,2.6541]
[1724110324318,2.65244,2639.1,2638.3,2.65321]
[1724110324319,4.92799,2638.9,2638.3,2.65321]
[1724110324654,2.65282,2638.7,2638.2,2.65331]
[1724110325011,2.65282,2638.7,2638.0,5.30697]
[1724110325209,2.65292,2638.6,2638.0,2.65346]
[1724110325405,2.65292,2638.6,2637.6,5.00218]
[1724110325406,2.65324,2638.3,2637.7,2.6538]
[1724110325605,5.3863,2638.6,2637.9,2.65361]
[1724110325606,2.2753,2638.6,2637.9,2.65361]
[1724110325828,4.92828,2638.6,2638.0,2.65346]
[1724110326109,4.92828,2638.6,2637.9,2.65361]
[1724110326110,2.65307,2638.5,2637.9,2.65361]
[1724110326656,2.65313,2638.4,2637.9,2.65357]
[1724110326853,4.92823,2638.6,2637.9,2.65357]
[1724110327486,4.92823,2638.6,2638.1,2.65341]
[1724110327690,4.92823,2638.6,2637.9,2.65354]
[1724110327691,2.65303,2638.5,2637.9,2.65354]
[1724110327842,4.92823,2638.6,2638.2,2.65327]
[1724110327843,2.2753,2638.6,2638.2,2.65327]
[1724110328198,2.2753,2638.6,2638.2,5.30654]
[1724110328350,2.2753,2638.6,2638.2,2.65327]
[1724110328747,2.2753,2638.6,2638.0,5.30689]
[1724110328748,4.92823,2638.6,2638.0,5.30689]
[1724110328990,4.92823,2638.6,2638.0,2.65343]
[1724110329349,2.2753,2638.5,2637.8,5.30738]
[1724110329662,2.2753,2638.5,2637.5,0.83416499]
[1724110329846,4.92904,2637.8,2637.3,2.6542]
[1724110330350,4.92904,2637.8,2637.1,5.30875]
[1724110330546,4.92904,2637.8,2637.2,2.65428]
[1724110330744,2.2753,2637.8,2637.3,2.65417]
[1724110331613,2.2753,2637.8,2637.4,2.65407]
[1724110331774,2.65348,2638.1,2637.6,2.65391]
[1724110331775,5.09048,2638.1,2637.6,2.65391]
[1724110331978,5.09048,2638.1,2637.4,2.65407]
[1724110331979,2.65362,2637.9,2637.4,2.65407]
[1724110332178,5.30732,2637.9,2637.3,2.65419]
[1724110332362,5.09048,2638.1,2637.3,2.65417]
[1724110332563,5.09048,2638.1,2637.5,2.65397]
[1724110332564,2.65357,2638.0,2637.5,2.65397]
[1724110332799,2.65357,2638.0,2637.4,2.6541]
[1724110335174,2.2788,2637.7,2637.1,5.30877]
[1724110335532,4.93268,2637.7,2637.2,2.65427]
[1724110335827,4.93268,2637.7,2637.1,2.65437]
[1724110335828,2.65394,2637.6,2637.1,2.65437]
[1724110336029,2.65403,2637.5,2636.9,2.65457]
[1724110336793,2.65403,2637.5,2637.0,2.65451]
[1724110337680,8.04369,2637.7,2637.2,2.65427]
[1724110337681,2.2788,2637.7,2637.2,2.65427]
[1724110338641,4.93264,2637.7,2637.2,2.65427]
[1724110338946,2.65398,2637.6,2637.0,2.6545]
[1724110339698,2.65398,2637.6,2636.8,2.65467]
[1724110339699,2.65408,2637.5,2636.8,2.65464]
[1724110340110,2.4376,2637.4,2636.8,2.65464]
[1724110340757,2.4376,2637.4,2636.9,2.65458]
[1724110342599,2.4376,2637.4,2636.8,2.65464]
[1724110342600,2.4376,2637.4,2636.5,3.49037112]
[1724110342802,2.4376,2637.4,2637.0,2.6545]
[1724110343003,2.65386,2637.7,2637.1,2.65442]
[1724110343004,2.3531,2637.7,2637.1,2.65442]
[1724110343256,5.00698,2637.7,2637.1,5.30879]
[1724110343455,5.00698,2637.7,2637.1,2.65437]
[1724110344007,5.00698,2637.7,2637.1,5.30874]
[1724110344407,5.00698,2637.7,2637.1,2.65437]
[1724110345420,2.65403,2637.5,2636.7,2.65474]
[1724110345743,2.65403,2637.5,2636.9,2.65462]
[1724110345744,5.00728,2637.4,2636.9,2.65462]
[1724110346537,2.65403,2637.5,2636.2,2.65528]
[1724110346538,2.65483,2636.7,2636.2,2.65528]
[1724110346743,2.4753,2636.6,2636.2,2.65528]
[1724110346922,2.65463,2636.9,2636.5,2.65495]
[1724110346923,2.4753,2636.9,2636.5,2.65495]
[1724110347121,2.65428,2637.3,2636.5,2.65495]
[1724110347122,2.4753,2637.2,2636.7,2.65477]
[1724110347336,2.4753,2637.2,2636.5,2.65494]
[1724110347653,2.4753,2637.2,2636.7,2.65481]
[1724110348308,5.12969,2637.2,2636.6,2.65492]
[1724110348509,2.4753,2637.2,2636.7,2.65474]
[1724110348948,2.4753,2637.2,2636.8,2.65467]
[1724110349653,2.4753,2637.2,2636.9,2.65461]
[1724110350404,2.461,2637.5,2637.2,2.65429]
[1724110350555,2.461,2637.5,2637.2,2.65427]
[1724110350755,2.461,2637.5,2637.0,5.30894]
[1724110350996,2.461,2637.5,2637.0,2.65444]
[1724110351454,2.461,2637.5,2637.0,5.30891]
[1724110351695,2.461,2637.5,2636.6,2.65491]
[1724110351996,2.461,2637.5,2637.0,2.65444]
[1724110352892,2.461,2637.5,2637.1,5.30879]
[1724110353393,2.461,2637.5,2637.2,2.65432]
[1724110354169,2.461,2637.5,2637.1,2.65437]
[1724110354803,2.461,2637.5,2637.1,5.30873]
[1724110355181,2.461,2637.5,2637.2,2.65431]
[1724110355516,2.461,2637.5,2637.1,2.65436]
[1724110355859,2.461,2637.5,2637.1,5.30871]
[1724110356297,2.461,2637.5,2637.1,2.65435]
[1724110356807,2.461,2637.5,2637.2,2.65431]
[1724110358307,2.461,2637.5,2637.1,2.65435]
[1724110358510,2.461,2637.5,2637.1,5.30872]
[1724110358887,2.461,2637.5,2637.2,2.65432]
[1724110360084,2.461,2637.5,2637.1,2.65435]
[1724110361718,2.461,2637.5,2637.1,5.30872]
[1724110361905,2.461,2637.5,2637.0,2.65447]
[1724110362219,2.461,2637.5,2636.8,2.65471]
[1724110362220,3.283593,2637.5,2636.8,2.65471]
[1724110362420,2.65418,2637.4,2636.8,2.65471]
[1724110362602,3.5133563,2637.4,2636.8,2.65471]
[1724110362977,3.283593,2637.5,2636.9,2.65456]
[1724110363320,2.461,2637.5,2636.9,2.65456]
[1724110363485,2.461,2637.5,2637.1,2.65442]
[1724110363889,2.461,2637.5,2637.0,2.65453]
[1724110364621,2.461,2637.5,2637.4,2.65412]
[1724110365032,2.4113,2637.8,2637.4,2.65412]
[1724110365875,5.06507,2637.8,2637.2,2.65424]
[1724110366078,5.882664,2637.8,2637.2,5.30851]
[1724110366226,2.4113,2637.8,2637.5,2.65397]
[1724110366633,2.4113,2637.8,2637.3,2.65414]
[1724110366857,2.4113,2637.8,2637.7,2.65382]
[1724110367526,2.4113,2638.2,2637.7,2.65382]
[1724110368170,5.06468,2638.2,2637.7,2.65382]
[1724110368475,2.65368,2637.9,2637.3,2.65414]
[1724110368693,2.676668,2637.8,2637.2,0.83405685]
[1724110368895,2.676668,2637.8,2637.4,2.65411]
[1724110368896,2.4113,2637.8,2637.4,2.65411]
[1724110370763,2.4113,2637.8,2637.5,2.65402]
[1724110371353,2.4113,2637.8,2637.2,0.83396624]
[1724110371682,2.4113,2638.1,2637.8,2.65365]
[1724110371995,2.4113,2638.1,2637.6,2.65383]
[1724110372658,2.4113,2638.1,2637.8,5.30742]
[1724110372852,2.4113,2638.1,2637.8,5.30737]
[1724110373052,2.4113,2638.1,2637.8,5.30733]
[1724110373252,2.4113,2638.1,2637.9,2.65362]
[1724110374500,2.4113,2638.1,2637.8,2.65366]
[1724110375271,2.4113,2638.1,2638.0,2.65352]
[1724110375452,5.76398,2638.6,2638.0,2.65352]
[1724110375453,2.3462,2638.5,2638.0,2.65352]
[1724110376800,2.3462,2638.5,2637.5,3.20077056]
[1724110376801,2.3462,2638.5,2638.2,2.65325]
[1724110377005,2.3462,2638.5,2638.3,2.65317]
[1724110377507,2.3462,2638.5,2638.4,2.65312]
[1724110377710,2.3462,2638.5,2638.2,2.65323]
[1724110378385,2.3462,2638.5,2638.3,2.65314]
[1724110379703,2.3462,2638.5,2638.2,2.65323]
[1724110379900,2.3462,2638.5,2638.2,5.3065]
[1724110380141,2.65273,2638.8,2637.7,0.83367153]
[1724110380142,2.2647,2638.8,2638.4,2.65312]
[1724110380447,2.2647,2638.8,2638.3,2.6532]
[1724110380643,2.2647,2638.8,2638.3,5.30637]
[1724110380850,2.2647,2638.8,2638.3,5.30633]
[1724110381049,2.65282,2638.7,2638.1,2.65336]
[1724110381345,8.63836,2638.8,2638.2,2.65331]
[1724110381529,5.98557,2638.8,2638.2,2.65326]
[1724110381850,3.33279,2638.8,2638.4,2.6531]
[1724110382344,2.2647,2638.8,2638.3,0.07580203]
[1724110382498,2.2647,2638.8,2638.0,5.08529]
[1724110382499,2.2647,2638.8,2638.7,2.65282]
[1724110382703,2.4628,2639.1,2638.8,2.65271]
[1724110383304,3.0,2639.5,2638.6,2.65291]
[1724110383305,5.11471,2639.7,2638.6,5.08469]
[1724110383502,5.11471,2639.7,2639.4,2.6521]
[1724110383503,2.4628,2639.7,2639.4,2.6521]
[1724110383785,2.4628,2639.7,2639.5,2.65199]
[1724110383990,2.4628,2639.7,2639.5,2.65194]
[1724110384154,2.4628,2639.7,2639.1,2.65239]
[1724110384155,2.4628,2640.1,2639.6,2.65191]
[1724110384343,3.039537,2640.1,2639.5,2.65192]
[1724110384546,5.690957,2640.1,2639.5,2.65192]
[1724110384892,5.690957,2640.1,2639.4,2.65205]
[1724110384893,5.690957,2640.1,2639.6,2.6519]
[1724110385188,2.3788,2639.9,2639.4,2.65205]
[1724110385392,2.3788,2639.9,2639.2,2.65225]
[1724110385393,5.03044,2639.9,2639.2,2.65225]
[1724110385692,2.65171,2639.8,2639.2,2.65225]
[1724110385989,1.16733457,2639.8,2639.3,2.65218]
[1724110386692,1.16733457,2639.8,2639.4,2.6521]
[1724110386855,8.14144,2639.9,2639.6,2.65191]
[1724110386856,2.3788,2639.9,2639.6,2.65191]
[1724110387045,2.3788,2639.9,2639.6,2.65185]
[1724110387445,2.3788,2639.9,2639.6,5.30371]
[1724110387759,2.3788,2639.9,2639.7,2.6518]
[1724110388739,3.111,2640.2,2639.7,2.6518]
[1724110388740,5.4554,2640.2,2639.7,2.6518]
[1724110388941,5.4554,2640.2,2639.6,2.65185]
[1724110388942,8.10672,2640.2,2639.6,5.3037]
[1724110389371,5.4554,2640.2,2639.6,2.65184]
[1724110389574,5.4554,2640.2,2639.7,2.6518]
[1724110390589,8.10671,2640.2,2639.7,2.6518]
[1724110391956,2.3444,2640.2,2639.9,2.65154]
[1724110397376,2.65147,2640.1,2639.4,2.65208]
[1724110397574,2.65147,2640.1,2639.5,2.65191]
[1724110397778,0.005,2640.3,2639.9,2.6516]
[1724110398078,0.005,2640.3,2639.9,5.30308]
[1724110398387,0.005,2640.3,2639.9,2.65154]
[1724110399128,2.3212,2640.2,2639.7,5.30351]
[1724110399247,2.3212,2640.2,2639.7,5.3035]
[1724110399624,2.3212,2640.2,2639.7,2.65175]
[1724110399918,4.97258,2640.2,2639.7,2.65175]
[1724110400687,2.3212,2640.2,2639.7,2.65175]
[1724110401089,2.3212,2640.2,2639.7,5.30351]
[1724110401297,2.3212,2640.2,2639.8,2.6517]
[1724110401666,2.3212,2640.2,2639.1,5.4085]
[1724110401667,2.3212,2640.2,2639.1,8.0609]
[1724110401895,2.3212,2640.0,2639.4,2.65206]
[1724110402097,2.65188,2639.7,2639.2,2.65224]
[1724110402252,2.65188,2639.7,2639.0,2.65245]
[1724110402253,2.3212,2639.6,2639.0,2.65243]
[1724110402593,2.65202,2639.5,2639.0,2.65243]
[1724110402795,2.65215,2639.4,2638.8,2.65265]
[1724110402997,2.65232,2639.2,2638.6,2.65284]
[1724110403301,2.65232,2639.2,2638.7,2.65281]
[1724110404150,2.3212,2639.3,2638.8,2.65271]
[1724110404652,2.3212,2639.3,2638.9,2.65258]
[1724110404857,2.3212,2639.3,2639.2,2.65231]
[1724110405053,5.30357,2639.8,2639.2,2.65231]
[1724110405054,2.4652,2639.7,2639.2,2.65231]
[1724110405269,2.4652,2639.7,2639.2,5.30457]
[1724110405473,2.4652,2639.7,2639.2,5.30451]
[1724110405694,2.4652,2639.7,2639.2,2.65225]
[1724110406197,2.4652,2639.7,2639.3,2.65216]
[1724110406407,2.4652,2639.7,2639.5,2.65198]
[1724110406783,2.4536,2640.1,2639.5,2.65196]
[1724110406979,2.4536,2640.1,2639.6,2.65183]
[1724110408004,2.4536,2640.1,2639.7,2.65179]
[1724110410068,2.4536,2640.1,2639.9,2.65161]
[1724110410378,7.415,2640.3,2640.0,2.65143]
[1724110410578,0.005,2640.3,2640.0,2.65143]
[1724110410981,0.005,2640.3,2640.1,2.65141]
[1724110411721,0.005,2640.3,2640.2,2.65131]
[1724110412027,0.005,2640.3,2640.1,5.30271]
[1724110412226,0.005,2640.3,2640.1,2.65135]
[1724110413024,0.005,2640.3,2640.2,2.65131]
[1724110413928,0.005,2640.3,2640.1,5.3027]
[1724110414096,0.005,2640.3,2640.1,2.65135]
[1724110414710,0.005,2640.3,2639.9,2.65156]
[1724110415096,0.005,2640.3,2639.9,5.30311]
[1724110415301,0.005,2640.3,2639.9,2.65155]
[1724110415547,0.005,2640.3,2640.0,2.65143]
[1724110415847,0.005,2640.3,2639.9,2.65155]
[1724110415848,0.005,2640.3,2640.1,2.65138]
[1724110416047,0.005,2640.3,2640.1,2.65135]
[1724110416204,0.005,2640.3,2640.1,5.3027]
[1724110416749,0.005,2640.3,2640.1,2.65135]
[1724110417436,0.005,2640.3,2639.8,2.6517]
[1724110418394,2.65624,2640.3,2639.6,2.65182]
[1724110418653,2.65624,2640.3,2639.7,2.65179]
[1724110418941,2.65624,2640.3,2639.6,2.65182]
[1724110418942,0.005,2640.3,2639.6,2.65182]
[1724110419128,2.4406,2640.1,2639.6,2.65182]
[1724110419436,2.4406,2640.1,2639.6,5.30367]
[1724110419769,2.4406,2640.1,2639.6,2.65182]
[1724110420048,5.09201,2640.1,2639.6,2.65182]
[1724110420238,2.4406,2640.1,2639.6,2.65182]
[1724110420997,2.4406,2640.1,2639.4,2.65205]
[1724110420998,2.65152,2640.0,2639.4,2.65205]
[1724110421394,2.4406,2639.6,2639.0,5.30489]
[1724110421744,2.4406,2639.6,2639.2,2.65222]
[1724110421928,2.4406,2639.6,2639.3,2.6522]
[1724110422129,2.4406,2639.6,2639.4,2.6521]
[1724110422386,2.4406,2639.6,2638.7,9.7969]
[1724110422387,2.4406,2639.6,2638.8,0.8327795]
[1724110422526,5.09252,2639.6,2639.1,2.65241]
[1724110422955,5.09252,2639.6,2638.9,5.3051]
[1724110423164,5.09252,2639.6,2639.0,2.65249]
[1724110424576,2.4406,2639.6,2639.2,2.65231]
[1724110425287,2.4406,2639.6,2639.2,2.65225]
[1724110425873,2.4406,2639.6,2639.3,2.65215]
[1724110426175,2.4406,2639.6,2639.2,2.65225]
[1724110426333,5.09252,2639.6,2639.0,2.65248]
[1724110426673,2.3348,2639.4,2638.9,2.6526]
[1724110427063,2.65223,2639.3,2638.8,2.65266]
[1724110427265,2.65232,2639.2,2638.6,2.65285]
[1724110427634,2.65223,2639.3,2638.7,2.65281]
[1724110427835,2.65223,2639.3,2638.8,2.65269]
[1724110428236,2.3348,2639.4,2638.8,2.65269]
[1724110428478,4.98691,2639.4,2638.8,2.65269]
[1724110428685,2.3348,2639.4,2638.9,2.65261]
[1724110428837,4.98693,2639.4,2638.9,2.65261]
[1724110429383,2.3348,2639.4,2639.0,2.65246]
[1724110429688,2.3348,2639.4,2639.1,2.65236]
[1724110429839,2.3348,2639.4,2639.0,2.65246]
[1724110430041,2.3348,2639.4,2639.0,5.30489]
[1724110430240,2.3348,2639.4,2639.0,2.65243]
[1724110431571,4.98691,2639.4,2638.8,2.65266]
[1724110432000,2.65227,2639.3,2638.8,2.65266]
[1724110432135,2.3763,2639.2,2638.6,2.65285]
[1724110432334,5.02867,2639.2,2638.6,2.65285]
[1724110432778,5.02867,2639.2,2638.4,2.65306]
[1724110432779,2.3763,2639.2,2638.4,2.65306]
[1724110432951,2.3763,2639.2,2638.2,2.65326]
[1724110432952,2.3763,2638.7,2638.2,2.65326]
[1724110433351,2.3763,2638.7,2638.2,5.30652]
[1724110433998,2.3763,2638.7,2638.3,2.6532]
[1724110434297,2.3763,2638.7,2638.4,2.65311]
[1724110435992,2.3763,2638.7,2638.4,5.30617]
[1724110436203,2.3763,2638.7,2638.4,2.65306]
[1724110436751,2.3763,2638.7,2638.2,2.65326]
[1724110437211,2.3763,2638.7,2638.3,2.65321]
[1724110437501,2.3763,2638.7,2638.2,2.65326]
[1724110437679,2.3763,2638.7,2638.0,2.65347]
[1724110437680,5.02913,2638.7,2638.0,2.65346]
[1724110437884,5.02933,2638.5,2638.0,2.65346]
[1724110439782,7.68241,2638.5,2637.8,5.30727]
[1724110440187,5.02933,2638.5,2637.9,2.6536]
[1724110440515,2.3763,2638.5,2638.1,2.65339]
[1724110440844,2.3763,2638.5,2637.7,3.0]
[1724110440845,2.4978,2638.4,2637.8,2.65371]
[1724110441198,5.15099,2638.4,2637.8,2.65371]
[1724110441734,5.15098,2638.4,2637.8,2.65371]
[1724110441910,2.4978,2638.4,2637.9,2.65353]
[1724110442115,2.4978,2638.4,2638.0,2.65352]
[1724110443203,2.4978,2638.4,2638.3,2.65322]
[1724110443414,2.4978,2638.4,2638.1,2.6534]
[1724110443415,2.4978,2638.4,2638.0,2.65345]
[1724110443643,2.4978,2638.4,2638.1,2.65337]
[1724110443854,2.4978,2638.4,2637.9,2.65356]
[1724110444218,2.4978,2638.4,2638.0,2.6535]
[1724110445158,2.4978,2638.4,2637.9,2.65356]
[1724110445159,5.15092,2638.4,2637.7,2.65375]
[1724110445300,5.15092,2638.4,2637.8,2.65372]
[1724110445502,2.2574,2638.8,2637.8,2.4674]
[1724110445916,2.2574,2638.8,2638.2,2.65327]
[1724110446262,2.2574,2638.8,2638.4,2.65306]
[1724110447420,2.2574,2638.8,2638.5,2.65295]
[1724110447680,2.2574,2638.8,2638.6,2.6529]
[1724110447834,2.2574,2638.8,2638.6,2.65286]
[1724110448368,2.2574,2638.8,2638.6,5.30572]
[1724110449429,2.2574,2638.8,2638.6,2.65286]
[1724110449739,2.2574,2638.8,2638.7,2.65282]
[1724110451540,2.491,2639.2,2638.9,2.65257]
[1724110451724,2.491,2639.2,2639.0,2.65251]
[1724110451928,2.491,2639.2,2638.9,2.65255]
[1724110452777,2.491,2639.2,2638.9,5.30511]
[1724110452939,2.491,2639.2,2638.9,2.65255]
[1724110453123,2.491,2639.2,2638.9,5.30511]
[1724110453327,2.491,2639.2,2638.9,2.65255]
[1724110454069,2.4211,2639.5,2639.2,2.65225]
[1724110457280,2.4211,2639.5,2639.0,5.30487]
[1724110457572,2.4211,2639.5,2639.1,2.65239]
[1724110458068,2.4211,2639.5,2639.2,2.65231]
[1724110458592,2.4211,2639.5,2639.0,2.65245]
[1724110458593,2.4211,2639.5,2639.0,5.3049]
[1724110459112,2.4211,2639.5,2639.0,2.65244]
[1724110459473,2.4207,2639.1,2638.6,2.65286]
[1724110459671,2.4207,2639.1,2638.4,2.65303]
[1724110459876,2.4207,2638.8,2638.4,2.65303]
[1724110460409,2.4207,2638.8,2638.7,2.65282]
[1724110460554,2.65238,2639.2,2638.7,2.65282]
[1724110460555,2.4818,2639.1,2638.7,2.65282]
[1724110460955,2.4818,2639.1,2638.8,2.65271]
[1724110461596,2.4818,2639.1,2638.9,2.65254]
[1724110463700,2.65264,2638.9,2638.3,2.65313]
[1724110463870,5.13427,2639.1,2638.5,2.65295]
[1724110464575,2.4818,2639.1,2638.3,2.65313]
[1724110464757,2.65282,2638.7,2638.1,2.65336]
[1724110464957,5.00254,2638.6,2638.1,2.65336]
[1724110465238,5.00254,2638.6,2638.1,5.30672]
[1724110465381,2.3496,2638.6,2638.1,5.30672]
[1724110465858,2.428,2638.2,2637.5,3.03386]
[1724110466058,5.539,2638.2,2637.5,3.03386]
[1724110466303,2.65349,2638.1,2637.5,2.65396]
[1724110466614,2.428,2638.2,2637.6,2.65392]
[1724110466773,6.595787,2638.2,2637.6,2.65392]
[1724110467159,3.942457,2638.2,2637.7,2.65381]
[1724110468417,2.428,2638.2,2637.7,2.65375]
[1724110468561,2.428,2638.2,2637.9,2.65355]
[1724110468761,7.41,2638.4,2638.0,2.65342]
[1724110468964,7.41,2638.4,2638.0,5.30687]
[1724110469290,7.41,2638.4,2638.0,2.65342]
[1724110469460,7.41,2638.4,2638.2,2.65331]
[1724110469660,2.4483,2638.5,2638.2,2.65331]
[1724110470007,2.4483,2638.5,2638.0,5.30686]
[1724110470430,2.4483,2638.5,2638.0,2.65342]
[1724110470600,2.4483,2638.5,2638.0,5.30687]
[1724110470802,2.4483,2638.5,2638.1,2.65338]
[1724110471893,2.4483,2638.5,2638.0,2.65342]
[1724110472344,2.958412,2638.5,2638.0,2.65342]
[1724110472987,2.958412,2638.5,2637.8,2.65367]
[1724110472988,3.163142,2638.5,2637.8,2.65367]
[1724110473356,2.65328,2638.3,2637.6,2.65387]
[1724110473485,2.2842,2638.2,2637.6,2.65387]
[1724110473686,4.93759,2638.2,2637.6,5.30774]
[1724110473992,2.2842,2637.9,2637.5,2.65397]
[1724110474729,2.2842,2637.9,2637.6,2.65392]
[1724110474896,2.2842,2637.9,2637.8,2.65372]
[1724110475086,2.2842,2637.9,2637.6,2.65386]
[1724110475536,4.93789,2637.9,2637.2,2.65425]
[1724110475739,2.2842,2637.9,2637.4,2.65407]
[1724110476051,2.2842,2637.9,2637.5,2.65401]
[1724110477536,2.2842,2637.9,2637.5,2.65396]
[1724110478003,2.2842,2637.9,2637.6,2.6539]
[1724110478205,2.2842,2637.9,2637.5,2.65396]
[1724110478703,2.2842,2637.9,2637.3,2.65416]
[1724110478704,2.2842,2637.9,2637.1,10.03438]
[1724110478911,2.2842,2637.9,2637.1,2.65438]
[1724110480015,2.4152,2637.7,2637.3,2.65416]
[1724110481054,2.4152,2637.7,2637.4,2.65407]
[1724110481567,2.4152,2637.7,2637.4,2.65412]
[1724110482568,2.4152,2637.7,2637.2,5.30855]
[1724110483557,5.841276,2637.7,2637.2,2.65424]
[1724110483760,3.426076,2637.7,2637.0,2.65448]
[1724110483924,2.4152,2637.4,2637.0,2.65448]
[1724110484763,2.4152,2637.4,2636.7,7.38]
[1724110484965,2.4152,2637.4,2637.3,2.65422]
[1724110486693,2.4152,2637.4,2637.1,2.65434]
[1724110486893,2.4152,2637.4,2637.3,2.65422]
[1724110487221,2.4152,2637.4,2637.1,2.65434]
[1724110487979,2.4152,2637.4,2637.1,2.65437]
[1724110488937,2.4152,2637.4,2637.2,2.65427]
[1724110489096,2.65388,2637.7,2637.1,2.65437]
[1724110489097,2.4023,2637.6,2637.3,2.65417]
[1724110489828,2.4023,2637.6,2637.3,2.65416]
[1724110491386,2.4023,2637.6,2637.2,2.65424]
[1724110491615,2.4023,2637.6,2637.3,2.65421]
[1724110492013,2.4023,2637.6,2637.1,2.65434]
[1724110492214,5.05625,2637.6,2637.1,2.65434]
[1724110492416,0.505625,2637.5,2637.0,2.65449]
[1724110492615,5.05625,2637.6,2637.0,2.65449]
[1724110492823,2.65406,2637.5,2637.0,2.65449]
[1724110493412,2.2678,2637.4,2637.0,2.65449]
[1724110496815,4.92193,2637.4,2637.0,2.65449]
[1724110497014,8.333698,2637.4,2636.8,5.30938]
[1724110497362,5.679518,2637.4,2636.9,2.65457]
[1724110497713,8.333708,2637.4,2636.9,2.65457]
[1724110497919,5.679518,2637.4,2636.9,2.65457]
[1724110498426,6.065898,2637.4,2636.9,2.65457]
[1724110498628,2.2678,2637.3,2636.9,2.65457]
[1724110500069,2.2678,2637.3,2636.8,2.65473]
[1724110500070,4.92203,2637.3,2636.8,2.65473]
[1724110500214,2.2678,2637.3,2636.8,2.65473]
[1724110500457,2.2678,2637.3,2636.9,2.65462]
[1724110500716,2.65454,2637.0,2636.5,2.65497]
[1724110500915,2.65454,2637.0,2636.1,2.65543]
[1724110500916,4.9226,2636.8,2636.1,2.65543]
[1724110501117,4.9226,2636.8,2636.4,2.65506]
[1724110501118,2.2678,2636.8,2636.4,2.65506]
[1724110501349,2.2678,2636.8,2636.4,2.65509]
[1724110501350,3.071137,2636.8,2636.4,2.65509]
[1724110501579,2.2678,2636.8,2636.7,2.65483]
[1724110501736,2.2678,2637.2,2636.8,2.6547]
[1724110502975,2.2678,2637.2,2637.1,2.65443]
[1724110503173,2.2678,2637.2,2636.3,2.8045]
[1724110503174,2.2943,2637.7,2637.0,2.65452]
[1724110503334,2.789104,2637.7,2637.0,2.65452]
[1724110503518,2.789104,2637.7,2637.2,2.65425]
[1724110503841,2.789104,2637.7,2637.3,2.65413]
[1724110504052,2.2943,2637.7,2637.3,2.65413]
[1724110504273,2.2943,2637.7,2637.4,2.65412]
[1724110504432,2.2943,2637.7,2637.6,2.65392]
[1724110505322,2.4358,2638.1,2637.6,2.65392]
[1724110505728,2.67938,2638.1,2637.6,2.65392]
[1724110506329,2.65362,2637.9,2637.2,2.65426]
[1724110506523,2.4358,2637.8,2637.2,3.48824069]
[1724110506719,2.4358,2637.8,2637.3,2.65418]
[1724110506967,2.4358,2637.8,2637.2,2.65426]
[1724110506968,2.4358,2637.8,2637.0,2.65446]
[1724110507168,2.4358,2637.8,2636.9,2.65454]
[1724110507169,2.3253,2637.6,2637.1,2.65443]
[1724110507726,2.3253,2637.6,2637.1,2.65435]
[1724110508141,2.3253,2637.6,2637.1,5.3087]
[1724110508348,0.508942,2637.8,2636.7,8.30956]
[1724110508349,2.65413,2637.4,2636.7,8.30956]
[1724110508646,2.3025,2637.5,2636.7,2.65476]